[Event "Titled Tuesday Blitz June 13 Early 2023"]
[White "Papasimakopoulos, Alexandros"]
[Black "Bharath Subramaniyam H"]
[WhiteFideId "4244125"]
[BlackFideId "46634827"]
[WhiteElo "2359"]
[BlackElo "2400"]
[Result "1-0"]
[Round "6"]
[TimeControl "180+2"]
[Date "2023.06.13"]
[WhiteClock "0:00:05"]
[BlackClock "0:00:00"]
[Board "26"]

1. d4 {[%clk 0:03:00]}  Nf6 {[%clk 0:03:00]} 2. c4 {[%clk 0:03:00]}  d6 {[%clk 0:03:00]} 3. Nf3 {[%clk 0:02:59]}  g6 {[%clk 0:03:00]} 4. Nc3 {[%clk 0:02:59]}  Bf5 {[%clk 0:03:00]} 5. Nh4 {[%clk 0:02:57]}  Bd7 {[%clk 0:03:00]} 6. e4 {[%clk 0:02:57]}  e5 {[%clk 0:03:00]} 7. Nf3 {[%clk 0:02:58]}  exd4 {[%clk 0:03:01]} 8. Nxd4 {[%clk 0:02:59]}  Bg7 {[%clk 0:03:02]} 9. Be2 {[%clk 0:02:59]}  O-O {[%clk 0:03:02]} 10. O-O {[%clk 0:03:00]}  Nc6 {[%clk 0:03:01]} 11. Be3 {[%clk 0:02:59]}  Re8 {[%clk 0:03:01]} 12. f3 {[%clk 0:02:58]}  Nh5 {[%clk 0:03:00]} 13. Nxc6 {[%clk 0:02:56]}  bxc6 {[%clk 0:02:58]} 14. Qd2 {[%clk 0:02:56]}  c5 {[%clk 0:02:38]} 15. g4 {[%clk 0:02:39]}  Nf6 {[%clk 0:02:36]} 16. Rad1 {[%clk 0:02:36]}  Bc6 {[%clk 0:02:29]} 17. Bh6 {[%clk 0:02:26]}  Qe7 {[%clk 0:02:23]} 18. Bxg7 {[%clk 0:02:23]}  Kxg7 {[%clk 0:02:24]} 19. b3 {[%clk 0:02:18]}  a5 {[%clk 0:02:22]} 20. a4 {[%clk 0:02:18]}  Nd7 {[%clk 0:02:15]} 21. Bd3 {[%clk 0:02:11]}  Ne5 {[%clk 0:02:11]} 22. Bc2 {[%clk 0:02:10]}  Qh4 {[%clk 0:02:02]} 23. Qf2 {[%clk 0:02:04]}  Qf6 {[%clk 0:02:01]} 24. Qe3 {[%clk 0:01:59]}  g5 {[%clk 0:01:53]} 25. h4 {[%clk 0:01:56]}  h6 {[%clk 0:01:38]} 26. h5 {[%clk 0:01:55]}  Bd7 {[%clk 0:01:34]} 27. Nd5 {[%clk 0:01:48]}  Qd8 {[%clk 0:01:35]} 28. Rde1 {[%clk 0:01:44]}  Be6 {[%clk 0:01:28]} 29. Nc3 {[%clk 0:01:42]}  Nc6 {[%clk 0:01:24]} 30. Nb5 {[%clk 0:01:40]}  Rc8 {[%clk 0:01:21]} 31. Bd1 {[%clk 0:01:38]}  Qf6 {[%clk 0:01:16]} 32. Re2 {[%clk 0:01:32]}  Qe5 {[%clk 0:01:09]} 33. Ref2 {[%clk 0:01:16]}  Nd4 {[%clk 0:01:08]} 34. Rd2 {[%clk 0:01:12]}  Nc6 {[%clk 0:00:52]} 35. f4 {[%clk 0:01:04]}  gxf4 {[%clk 0:00:51]} 36. Qxf4 {[%clk 0:01:05]}  Qxf4 {[%clk 0:00:49]} 37. Rxf4 {[%clk 0:01:06]}  Ne5 {[%clk 0:00:49]} 38. Kf2 {[%clk 0:01:01]}  Kf8 {[%clk 0:00:46]} 39. Nc3 {[%clk 0:00:58]}  Ke7 {[%clk 0:00:45]} 40. Nd5+ {[%clk 0:00:58]}  Bxd5 {[%clk 0:00:45]} 41. exd5 {[%clk 0:00:59]}  Rg8 {[%clk 0:00:43]} 42. Kg3 {[%clk 0:00:56]}  Rg5 {[%clk 0:00:42]} 43. Kh4 {[%clk 0:00:54]}  f5 {[%clk 0:00:34]} 44. Rxf5 {[%clk 0:00:35]}  Rxf5 {[%clk 0:00:34]} 45. gxf5 {[%clk 0:00:36]}  Rg8 {[%clk 0:00:35]} 46. f6+ {[%clk 0:00:36]}  Kxf6 {[%clk 0:00:34]} 47. Rf2+ {[%clk 0:00:34]}  Ke7 {[%clk 0:00:34]} 48. Rf1 {[%clk 0:00:24]}  Rg2 {[%clk 0:00:29]} 49. Kh3 {[%clk 0:00:25]}  Rd2 {[%clk 0:00:26]} 50. Kg3 {[%clk 0:00:20]}  Nd7 {[%clk 0:00:21]} 51. Kf4 {[%clk 0:00:19]}  Nf6 {[%clk 0:00:21]} 52. Ke3 {[%clk 0:00:20]}  Rh2 {[%clk 0:00:20]} 53. Rg1 {[%clk 0:00:19]}  Kf7 {[%clk 0:00:19]} 54. Rf1 {[%clk 0:00:19]}  Rh3+ {[%clk 0:00:19]} 55. Kf4 {[%clk 0:00:18]}  Rd3 {[%clk 0:00:15]} 56. Rg1 {[%clk 0:00:13]}  Rd4+ {[%clk 0:00:14]} 57. Ke3 {[%clk 0:00:12]}  Rh4 {[%clk 0:00:14]} 58. Rf1 {[%clk 0:00:12]}  Ke7 {[%clk 0:00:15]} 59. Rg1 {[%clk 0:00:12]}  Kf7 {[%clk 0:00:13]} 60. Rf1 {[%clk 0:00:12]}  Rh2 {[%clk 0:00:13]} 61. Kd3 {[%clk 0:00:11]}  Rg2 {[%clk 0:00:13]} 62. Ke3 {[%clk 0:00:10]}  Rg5 {[%clk 0:00:13]} 63. Kd3 {[%clk 0:00:10]}  Ke7 {[%clk 0:00:13]} 64. Re1+ {[%clk 0:00:10]}  Kf7 {[%clk 0:00:10]} 65. Rf1 {[%clk 0:00:10]}  Kg7 {[%clk 0:00:08]} 66. Re1 {[%clk 0:00:10]}  Re5 {[%clk 0:00:08]} 67. Rg1+ {[%clk 0:00:10]}  Kf7 {[%clk 0:00:07]} 68. Rf1 {[%clk 0:00:10]}  Ke7 {[%clk 0:00:06]} 69. Rg1 {[%clk 0:00:10]}  Nxh5 {[%clk 0:00:06]} 70. Bxh5 {[%clk 0:00:10]}  Rxh5 {[%clk 0:00:07]} 71. Rg7+ {[%clk 0:00:10]}  Kd8 {[%clk 0:00:07]} 72. Rg8+ {[%clk 0:00:10]}  Kd7 {[%clk 0:00:08]} 73. Ra8 {[%clk 0:00:10]}  Rh2 {[%clk 0:00:06]} 74. Rxa5 {[%clk 0:00:09]}  Rh3+ {[%clk 0:00:02]} 75. Kc2 {[%clk 0:00:09]}  Rh2+ {[%clk 0:00:02]} 76. Kc3 {[%clk 0:00:09]}  Rh3+ {[%clk 0:00:02]} 77. Kb2 {[%clk 0:00:10]}  h5 {[%clk 0:00:03]} 78. Ra8 {[%clk 0:00:10]}  h4 {[%clk 0:00:04]} 79. Rh8 {[%clk 0:00:10]}  Rh2+ {[%clk 0:00:04]} 80. Ka3 {[%clk 0:00:09]}  Rh1 {[%clk 0:00:05]} 81. a5 {[%clk 0:00:07]}  h3 {[%clk 0:00:03]} 82. Ka2 {[%clk 0:00:05]}  Rh2+ {[%clk 0:00:02]} 83. Ka3 {[%clk 0:00:05]}  Rh1 {[%clk 0:00:03]} 84. Kb2 {[%clk 0:00:06]}  Rh2+ {[%clk 0:00:02]} 85. Kc3 {[%clk 0:00:06]}  Ra2 {[%clk 0:00:01]} 86. Rh7+ {[%clk 0:00:06]}  Kc8 {[%clk 0:00:01]} 87. Rh8+ {[%clk 0:00:06]}  Kb7 {[%clk 0:00:01]} 88. Rxh3 {[%clk 0:00:06]}  Rxa5 {[%clk 0:00:02]} 89. Rg3 {[%clk 0:00:07]}  Ra3 {[%clk 0:00:02]} 90. Rg1 {[%clk 0:00:05]}  Ra7 {[%clk 0:00:00]} 91. Rg8 {[%clk 0:00:05]} 1-0


[Site "https://www.chess.com"]

[Event "Titled Tuesday Blitz June 13 Early 2023"]
[White "Martinez Ramirez, Lennis"]
[Black "Ahmadzada, Ahmad"]
[WhiteFideId "3509079"]
[BlackFideId "13413007"]
[WhiteElo "2410"]
[BlackElo "2388"]
[Result "0-1"]
[Round "6"]
[TimeControl "180+2"]
[Date "2023.06.13"]
[WhiteClock "0:00:05"]
[BlackClock "0:00:40"]
[Board "28"]

1. Nf3 {[%clk 0:03:00]}  Nf6 {[%clk 0:02:57]} 2. c4 {[%clk 0:03:01]}  g6 {[%clk 0:02:56]} 3. Nc3 {[%clk 0:03:01]}  Bg7 {[%clk 0:02:56]} 4. e4 {[%clk 0:03:02]}  d6 {[%clk 0:02:57]} 5. d4 {[%clk 0:03:02]}  O-O {[%clk 0:02:57]} 6. Be3 {[%clk 0:03:02]}  Nbd7 {[%clk 0:02:56]} 7. h3 {[%clk 0:02:53]}  e5 {[%clk 0:02:52]} 8. d5 {[%clk 0:02:53]}  Nc5 {[%clk 0:02:52]} 9. Nd2 {[%clk 0:02:47]}  a5 {[%clk 0:02:46]} 10. g4 {[%clk 0:02:47]}  Ne8 {[%clk 0:02:44]} 11. Qc2 {[%clk 0:02:42]}  f5 {[%clk 0:02:33]} 12. gxf5 {[%clk 0:02:41]}  gxf5 {[%clk 0:02:34]} 13. Bxc5 {[%clk 0:02:37]}  dxc5 {[%clk 0:02:33]} 14. exf5 {[%clk 0:02:35]}  Nd6 {[%clk 0:02:29]} 15. Bd3 {[%clk 0:02:33]}  Nxf5 {[%clk 0:02:28]} 16. Bxf5 {[%clk 0:02:33]}  Bxf5 {[%clk 0:02:29]} 17. Nde4 {[%clk 0:02:32]}  Bh6 {[%clk 0:02:26]} 18. Ke2 {[%clk 0:02:20]}  Qh4 {[%clk 0:02:24]} 19. Rag1+ {[%clk 0:02:19]}  Kh8 {[%clk 0:02:24]} 20. Rg3 {[%clk 0:02:16]}  Bf4 {[%clk 0:02:19]} 21. Rgg1 {[%clk 0:02:03]}  Qh5+ {[%clk 0:02:16]} 22. Ke1 {[%clk 0:02:01]}  Qh4 {[%clk 0:01:59]} 23. Qe2 {[%clk 0:01:59]}  Rae8 {[%clk 0:01:47]} 24. Kd1 {[%clk 0:01:47]}  c6 {[%clk 0:01:43]} 25. f3 {[%clk 0:01:46]}  b5 {[%clk 0:01:37]} 26. cxb5 {[%clk 0:01:32]}  cxd5 {[%clk 0:01:36]} 27. Nxd5 {[%clk 0:01:33]}  Rd8 {[%clk 0:01:36]} 28. Nc3 {[%clk 0:01:30]}  Be6 {[%clk 0:01:32]} 29. Qd3 {[%clk 0:01:18]}  Rxd5 {[%clk 0:01:18]} 30. Nxd5 {[%clk 0:01:17]}  Bxd5 {[%clk 0:01:10]} 31. Rg4 {[%clk 0:00:55]}  Qf6 {[%clk 0:01:03]} 32. Qxd5 {[%clk 0:00:20]}  Rd8 {[%clk 0:01:02]} 33. Qxd8+ {[%clk 0:00:20]}  Qxd8+ {[%clk 0:01:01]} 34. Kc2 {[%clk 0:00:21]}  Qd2+ {[%clk 0:00:54]} 35. Kb1 {[%clk 0:00:22]}  h5 {[%clk 0:00:55]} 36. Rh4 {[%clk 0:00:16]}  Be3 {[%clk 0:00:43]} 37. Rxh5+ {[%clk 0:00:15]}  Kg7 {[%clk 0:00:42]} 38. Rxe5 {[%clk 0:00:15]}  Bd4 {[%clk 0:00:41]} 39. Rh2 {[%clk 0:00:05]}  Qd1# {[%clk 0:00:40]} 0-1


[Site "https://www.chess.com"]

[Event "Titled Tuesday Blitz June 13 Early 2023"]
[White "Ashraf, Artin"]
[Black "Galchenko, Matvey"]
[WhiteFideId "22514805"]
[BlackFideId "24175480"]
[WhiteElo "2224"]
[BlackElo "2423"]
[Result "0-1"]
[Round "6"]
[TimeControl "180+2"]
[Date "2023.06.13"]
[WhiteClock "0:00:00"]
[BlackClock "0:00:04"]
[Board "29"]

1. c4 {[%clk 0:02:57]}  e6 {[%clk 0:02:51]} 2. Nf3 {[%clk 0:02:53]}  d5 {[%clk 0:02:51]} 3. g3 {[%clk 0:02:53]}  Nf6 {[%clk 0:02:44]} 4. Bg2 {[%clk 0:02:52]}  dxc4 {[%clk 0:02:43]} 5. Qa4+ {[%clk 0:02:48]}  Nbd7 {[%clk 0:02:43]} 6. Qxc4 {[%clk 0:02:48]}  a6 {[%clk 0:02:44]} 7. Qc2 {[%clk 0:02:46]}  c5 {[%clk 0:02:33]} 8. O-O {[%clk 0:02:41]}  b5 {[%clk 0:02:27]} 9. Ne5 {[%clk 0:02:35]}  Nd5 {[%clk 0:02:26]} 10. d4 {[%clk 0:01:39]}  Bb7 {[%clk 0:02:00]} 11. Nxd7 {[%clk 0:01:16]}  Qxd7 {[%clk 0:02:01]} 12. dxc5 {[%clk 0:01:16]}  Rc8 {[%clk 0:01:23]} 13. e4 {[%clk 0:01:14]}  Nb4 {[%clk 0:01:22]} 14. Qb3 {[%clk 0:01:07]}  Bxc5 {[%clk 0:01:20]} 15. Rd1 {[%clk 0:01:05]}  Qe7 {[%clk 0:00:37]} 16. Nc3 {[%clk 0:00:54]}  O-O {[%clk 0:00:34]} 17. Bf4 {[%clk 0:00:36]}  Nc6 {[%clk 0:00:34]} 18. Ne2 {[%clk 0:00:31]}  Na5 {[%clk 0:00:32]} 19. Qf3 {[%clk 0:00:29]}  f5 {[%clk 0:00:29]} 20. Qh5 {[%clk 0:00:16]}  fxe4 {[%clk 0:00:25]} 21. Rac1 {[%clk 0:00:14]}  e5 {[%clk 0:00:14]} 22. Bxe5 {[%clk 0:00:08]}  Rxf2 {[%clk 0:00:08]} 23. Nd4 {[%clk 0:00:04]}  Rf7 {[%clk 0:00:07]} 24. Kh1 {[%clk 0:00:04]}  Nc4 {[%clk 0:00:07]} 25. Bf4 {[%clk 0:00:03]}  Nxb2 {[%clk 0:00:07]} 26. Rd2 {[%clk 0:00:02]}  Nd3 {[%clk 0:00:08]} 27. Rcc2 {[%clk 0:00:01]}  Bxd4 {[%clk 0:00:06]} 28. Rxc8+ {[%clk 0:00:01]}  Bxc8 {[%clk 0:00:07]} 29. Qd5 {[%clk 0:00:01]}  Nxf4 {[%clk 0:00:03]} 30. gxf4 {[%clk 0:00:02]}  Bf6 {[%clk 0:00:03]} 31. Bxe4 {[%clk 0:00:02]}  Be6 {[%clk 0:00:03]} 32. Qa8+ {[%clk 0:00:02]}  Rf8 {[%clk 0:00:04]} 33. Qc6 {[%clk 0:00:03]}  h6 {[%clk 0:00:04]} 34. Rd6 {[%clk 0:00:02]}  Bc4 {[%clk 0:00:04]} 35. Rd7 {[%clk 0:00:01]}  Qe6 {[%clk 0:00:04]} 36. Qb7 {[%clk 0:00:00]}  Qg4 {[%clk 0:00:04]} 0-1


[Site "https://www.chess.com"]

[Event "Titled Tuesday Blitz June 13 Early 2023"]
[White "Andreikin, Dmitry"]
[Black "Camilla_Lee"]
[WhiteFideId "4158814"]
[WhiteElo "2736"]
[BlackElo "2592"]
[Result "1-0"]
[Round "6"]
[TimeControl "180+2"]
[Date "2023.06.13"]
[WhiteClock "0:01:12"]
[BlackClock "0:00:03"]
[Board "32"]

1. e4 {[%clk 0:03:00]}  e5 {[%clk 0:02:59]} 2. f4 {[%clk 0:02:59]}  d5 {[%clk 0:02:59]} 3. exd5 {[%clk 0:02:57]}  e4 {[%clk 0:02:59]} 4. Nc3 {[%clk 0:02:57]}  Nf6 {[%clk 0:03:00]} 5. d4 {[%clk 0:02:55]}  Bb4 {[%clk 0:02:54]} 6. Bc4 {[%clk 0:02:53]}  Bxc3+ {[%clk 0:02:53]} 7. bxc3 {[%clk 0:02:52]}  Nxd5 {[%clk 0:02:53]} 8. Qh5 {[%clk 0:02:49]}  c6 {[%clk 0:02:25]} 9. Qe5+ {[%clk 0:02:42]}  Kf8 {[%clk 0:02:18]} 10. Ba3+ {[%clk 0:02:42]}  Kg8 {[%clk 0:02:18]} 11. Ne2 {[%clk 0:02:42]}  Nd7 {[%clk 0:02:14]} 12. Qd6 {[%clk 0:02:41]}  Qf6 {[%clk 0:02:07]} 13. Bxd5 {[%clk 0:02:32]}  Qxd6 {[%clk 0:01:58]} 14. Bxf7+ {[%clk 0:02:32]}  Kxf7 {[%clk 0:01:59]} 15. Bxd6 {[%clk 0:02:32]}  Nf6 {[%clk 0:01:57]} 16. Be5 {[%clk 0:02:29]}  Nd5 {[%clk 0:01:50]} 17. Ng3 {[%clk 0:02:26]}  Ne3 {[%clk 0:01:42]} 18. Rc1 {[%clk 0:02:14]}  Nxg2+ {[%clk 0:01:36]} 19. Kf2 {[%clk 0:02:14]}  Nh4 {[%clk 0:01:36]} 20. Nxe4 {[%clk 0:02:13]}  Nf5 {[%clk 0:01:35]} 21. c4 {[%clk 0:02:09]}  Be6 {[%clk 0:01:24]} 22. Ng5+ {[%clk 0:02:09]}  Ke7 {[%clk 0:01:25]} 23. Rhe1 {[%clk 0:02:08]}  Rhe8 {[%clk 0:01:18]} 24. Rb1 {[%clk 0:02:07]}  b6 {[%clk 0:01:14]} 25. c5 {[%clk 0:02:08]}  Bxa2 {[%clk 0:00:46]} 26. Ra1 {[%clk 0:02:07]}  Bd5 {[%clk 0:00:43]} 27. cxb6 {[%clk 0:02:07]}  Nd6 {[%clk 0:00:31]} 28. bxa7 {[%clk 0:01:53]}  Nb5 {[%clk 0:00:20]} 29. Bxg7+ {[%clk 0:01:40]}  Kd7 {[%clk 0:00:21]} 30. Rxe8 {[%clk 0:01:40]}  Kxe8 {[%clk 0:00:22]} 31. Nxh7 {[%clk 0:01:35]}  Rxa7 {[%clk 0:00:22]} 32. Rxa7 {[%clk 0:01:34]}  Nxa7 {[%clk 0:00:23]} 33. Ng5 {[%clk 0:01:32]}  Nb5 {[%clk 0:00:22]} 34. h4 {[%clk 0:01:32]}  Nd6 {[%clk 0:00:21]} 35. h5 {[%clk 0:01:32]}  Nf5 {[%clk 0:00:21]} 36. h6 {[%clk 0:01:33]}  Bg8 {[%clk 0:00:17]} 37. c4 {[%clk 0:01:23]}  Nxg7 {[%clk 0:00:11]} 38. hxg7 {[%clk 0:01:19]}  Bxc4 {[%clk 0:00:12]} 39. Ne4 {[%clk 0:01:18]}  Bg8 {[%clk 0:00:04]} 40. f5 {[%clk 0:01:13]}  Kf7 {[%clk 0:00:02]} 41. f6 {[%clk 0:01:14]}  Bh7 {[%clk 0:00:03]} 42. Ke3 {[%clk 0:01:13]}  Bg6 {[%clk 0:00:02]} 43. Ng5+ {[%clk 0:01:11]}  Kg8 {[%clk 0:00:02]} 44. Kf4 {[%clk 0:01:11]}  Bh5 {[%clk 0:00:02]} 45. Ke5 {[%clk 0:01:11]}  Be8 {[%clk 0:00:01]} 46. Kd6 {[%clk 0:01:12]}  c5 {[%clk 0:00:01]} 47. dxc5 {[%clk 0:01:11]}  Bd7 {[%clk 0:00:01]} 48. f7+ {[%clk 0:01:11]}  Kxg7 {[%clk 0:00:02]} 49. Kxd7 {[%clk 0:01:11]}  Kf8 {[%clk 0:00:03]} 50. c6 {[%clk 0:01:11]}  Kg7 {[%clk 0:00:03]} 51. c7 {[%clk 0:01:12]} 1-0


[Site "https://www.chess.com"]

[Event "Titled Tuesday Blitz June 13 Early 2023"]
[White "Tristan, Leonardo"]
[Black "Bortnyk, Olexandr"]
[WhiteFideId "113816"]
[BlackFideId "14120828"]
[WhiteElo "2461"]
[BlackElo "2733"]
[Result "0-1"]
[Round "6"]
[TimeControl "180+2"]
[Date "2023.06.13"]
[WhiteClock "0:00:11"]
[BlackClock "0:01:26"]
[Board "33"]

1. d4 {[%clk 0:03:00]}  Nf6 {[%clk 0:02:58]} 2. Nf3 {[%clk 0:03:00]}  b6 {[%clk 0:02:58]} 3. Bf4 {[%clk 0:03:00]}  Bb7 {[%clk 0:02:58]} 4. e3 {[%clk 0:03:00]}  g6 {[%clk 0:02:59]} 5. Be2 {[%clk 0:02:59]}  Bg7 {[%clk 0:03:00]} 6. O-O {[%clk 0:03:00]}  O-O {[%clk 0:03:01]} 7. a4 {[%clk 0:02:59]}  a5 {[%clk 0:03:00]} 8. Nbd2 {[%clk 0:02:58]}  d6 {[%clk 0:03:00]} 9. h3 {[%clk 0:02:59]}  Nbd7 {[%clk 0:02:59]} 10. Bh2 {[%clk 0:02:59]}  Qb8 {[%clk 0:02:56]} 11. Re1 {[%clk 0:02:43]}  Qa7 {[%clk 0:02:53]} 12. Bb5 {[%clk 0:02:40]}  Rad8 {[%clk 0:02:49]} 13. e4 {[%clk 0:02:39]}  Qa8 {[%clk 0:02:49]} 14. e5 {[%clk 0:02:19]}  dxe5 {[%clk 0:02:50]} 15. dxe5 {[%clk 0:02:20]}  Nd5 {[%clk 0:02:47]} 16. e6 {[%clk 0:01:55]}  fxe6 {[%clk 0:02:41]} 17. c3 {[%clk 0:01:55]}  Nc5 {[%clk 0:02:37]} 18. Qe2 {[%clk 0:01:53]}  Nf4 {[%clk 0:02:34]} 19. Bxf4 {[%clk 0:01:52]}  Rxf4 {[%clk 0:02:35]} 20. Bc4 {[%clk 0:01:39]}  Bd5 {[%clk 0:02:34]} 21. Bxd5 {[%clk 0:01:35]}  Qxd5 {[%clk 0:02:35]} 22. Rad1 {[%clk 0:01:32]}  Rdf8 {[%clk 0:02:26]} 23. c4 {[%clk 0:01:06]}  Qc6 {[%clk 0:02:11]} 24. b3 {[%clk 0:01:07]}  Bc3 {[%clk 0:02:09]} 25. Qe3 {[%clk 0:01:03]}  Bxd2 {[%clk 0:02:08]} 26. Rxd2 {[%clk 0:01:03]}  Re4 {[%clk 0:02:01]} 27. Qc3 {[%clk 0:01:03]}  Rxe1+ {[%clk 0:02:01]} 28. Nxe1 {[%clk 0:01:03]}  Ne4 {[%clk 0:02:01]} 29. Qe3 {[%clk 0:01:01]}  Nxd2 {[%clk 0:02:00]} 30. Qxd2 {[%clk 0:01:01]}  Qe4 {[%clk 0:01:48]} 31. Nf3 {[%clk 0:00:28]}  Qb1+ {[%clk 0:01:47]} 32. Kh2 {[%clk 0:00:29]}  Qxb3 {[%clk 0:01:48]} 33. Qe2 {[%clk 0:00:30]}  Rf6 {[%clk 0:01:45]} 34. Qe4 {[%clk 0:00:20]}  Qxa4 {[%clk 0:01:38]} 35. Ne5 {[%clk 0:00:21]}  Qd1 {[%clk 0:01:29]} 36. Qa8+ {[%clk 0:00:14]}  Kg7 {[%clk 0:01:29]} 37. Qe8 {[%clk 0:00:14]}  Qd6 {[%clk 0:01:26]} 38. f4 {[%clk 0:00:11]}  Rxf4 {[%clk 0:01:26]} 0-1


[Site "https://www.chess.com"]

[Event "Titled Tuesday Blitz June 13 Early 2023"]
[White "Ajay Karthikeyan"]
[Black "Gorovets, Andrey"]
[WhiteFideId "35011685"]
[BlackFideId "13504037"]
[WhiteElo "2321"]
[BlackElo "2459"]
[Result "0-1"]
[Round "6"]
[TimeControl "180+2"]
[Date "2023.06.13"]
[WhiteClock "0:00:13"]
[BlackClock "0:00:04"]
[Board "36"]

1. d4 {[%clk 0:02:59]}  Nf6 {[%clk 0:02:59]} 2. Bf4 {[%clk 0:02:59]}  d6 {[%clk 0:02:54]} 3. Nc3 {[%clk 0:02:58]}  Nbd7 {[%clk 0:02:54]} 4. Nf3 {[%clk 0:02:58]}  c6 {[%clk 0:02:54]} 5. e4 {[%clk 0:02:57]}  Qa5 {[%clk 0:02:53]} 6. Bd3 {[%clk 0:02:56]}  e5 {[%clk 0:02:53]} 7. Bd2 {[%clk 0:02:56]}  Qc7 {[%clk 0:02:52]} 8. Qe2 {[%clk 0:02:54]}  b5 {[%clk 0:02:50]} 9. a3 {[%clk 0:02:53]}  Be7 {[%clk 0:02:47]} 10. h3 {[%clk 0:02:44]}  a6 {[%clk 0:02:46]} 11. b4 {[%clk 0:02:25]}  O-O {[%clk 0:02:38]} 12. O-O {[%clk 0:02:25]}  Bb7 {[%clk 0:02:35]} 13. Be3 {[%clk 0:02:22]}  Rfe8 {[%clk 0:02:35]} 14. Qd2 {[%clk 0:02:11]}  Bf8 {[%clk 0:02:27]} 15. Rfe1 {[%clk 0:02:11]}  g6 {[%clk 0:02:24]} 16. Rad1 {[%clk 0:02:08]}  exd4 {[%clk 0:02:22]} 17. Bxd4 {[%clk 0:02:05]}  c5 {[%clk 0:02:20]} 18. Bxf6 {[%clk 0:01:58]}  Nxf6 {[%clk 0:02:21]} 19. Qf4 {[%clk 0:01:58]}  Bg7 {[%clk 0:02:07]} 20. Bxb5 {[%clk 0:01:27]}  axb5 {[%clk 0:02:01]} 21. Nxb5 {[%clk 0:01:27]}  Qb8 {[%clk 0:02:01]} 22. Nxd6 {[%clk 0:01:22]}  Rxe4 {[%clk 0:01:19]} 23. Rxe4 {[%clk 0:01:15]}  Bxe4 {[%clk 0:01:18]} 24. bxc5 {[%clk 0:01:08]}  Bxf3 {[%clk 0:01:01]} 25. Qxf3 {[%clk 0:01:08]}  Qf8 {[%clk 0:00:23]} 26. c6 {[%clk 0:01:01]}  Ne8 {[%clk 0:00:23]} 27. Nb5 {[%clk 0:00:57]}  Rc8 {[%clk 0:00:20]} 28. c4 {[%clk 0:00:49]}  Qc5 {[%clk 0:00:20]} 29. Rd7 {[%clk 0:00:44]}  Qxc4 {[%clk 0:00:18]} 30. c7 {[%clk 0:00:29]}  Nxc7 {[%clk 0:00:15]} 31. Nd6 {[%clk 0:00:21]}  Qe6 {[%clk 0:00:07]} 32. Qc6 {[%clk 0:00:14]}  Qe1+ {[%clk 0:00:04]} 33. Kh2 {[%clk 0:00:15]}  Be5+ {[%clk 0:00:04]} 34. g3 {[%clk 0:00:14]}  Qxf2+ {[%clk 0:00:05]} 35. Kh1 {[%clk 0:00:14]}  Qe1+ {[%clk 0:00:04]} 36. Kg2 {[%clk 0:00:14]}  Qxg3+ {[%clk 0:00:05]} 37. Kf1 {[%clk 0:00:14]}  Qxh3+ {[%clk 0:00:05]} 38. Ke2 {[%clk 0:00:13]}  Qg4+ {[%clk 0:00:05]} 39. Kf1 {[%clk 0:00:13]}  Qh3+ {[%clk 0:00:05]} 40. Ke2 {[%clk 0:00:13]}  Bxd6 {[%clk 0:00:05]} 41. Rxd6 {[%clk 0:00:13]}  Re8+ {[%clk 0:00:05]} 42. Kd2 {[%clk 0:00:12]}  Qh2+ {[%clk 0:00:04]} 43. Kc3 {[%clk 0:00:12]}  Re3+ {[%clk 0:00:04]} 44. Kc4 {[%clk 0:00:13]}  Qf4+ {[%clk 0:00:05]} 45. Rd4 {[%clk 0:00:13]}  Qg3 {[%clk 0:00:03]} 46. Qd7 {[%clk 0:00:12]}  Rc3+ {[%clk 0:00:03]} 47. Kb4 {[%clk 0:00:12]}  Rb3+ {[%clk 0:00:04]} 48. Kc4 {[%clk 0:00:13]}  Qc3# {[%clk 0:00:04]} 0-1


[Site "https://www.chess.com"]

[Event "Titled Tuesday Blitz June 13 Early 2023"]
[White "Molina, Roberto Junio Brito"]
[Black "Arabidze, Meri"]
[WhiteFideId "2109450"]
[BlackFideId "13604040"]
[WhiteElo "2376"]
[BlackElo "2405"]
[Result "0-1"]
[Round "6"]
[TimeControl "180+2"]
[Date "2023.06.13"]
[WhiteClock "0:00:16"]
[BlackClock "0:00:45"]
[Board "37"]

1. d4 {[%clk 0:03:00]}  Nf6 {[%clk 0:02:59]} 2. c4 {[%clk 0:03:00]}  e6 {[%clk 0:02:59]} 3. Nf3 {[%clk 0:03:00]}  Bb4+ {[%clk 0:02:58]} 4. Bd2 {[%clk 0:02:59]}  Qe7 {[%clk 0:02:58]} 5. a3 {[%clk 0:02:50]}  Bxd2+ {[%clk 0:02:58]} 6. Qxd2 {[%clk 0:02:51]}  d6 {[%clk 0:02:55]} 7. Nc3 {[%clk 0:02:49]}  O-O {[%clk 0:02:54]} 8. e4 {[%clk 0:02:48]}  e5 {[%clk 0:02:55]} 9. d5 {[%clk 0:02:48]}  a5 {[%clk 0:02:52]} 10. Bd3 {[%clk 0:02:47]}  Na6 {[%clk 0:02:51]} 11. Bc2 {[%clk 0:02:47]}  Nc5 {[%clk 0:02:50]} 12. O-O {[%clk 0:02:37]}  a4 {[%clk 0:02:50]} 13. Ne1 {[%clk 0:02:36]}  Bd7 {[%clk 0:02:47]} 14. f3 {[%clk 0:02:33]}  Nh5 {[%clk 0:02:44]} 15. Nd3 {[%clk 0:02:32]}  Nxd3 {[%clk 0:02:43]} 16. Bxd3 {[%clk 0:02:33]}  Nf4 {[%clk 0:02:41]} 17. Bc2 {[%clk 0:02:27]}  f5 {[%clk 0:02:23]} 18. exf5 {[%clk 0:02:23]}  Bxf5 {[%clk 0:02:23]} 19. Bxf5 {[%clk 0:02:20]}  Rxf5 {[%clk 0:02:24]} 20. Ne4 {[%clk 0:02:09]}  Raf8 {[%clk 0:02:17]} 21. g3 {[%clk 0:01:57]}  Nh3+ {[%clk 0:02:07]} 22. Kg2 {[%clk 0:01:57]}  Ng5 {[%clk 0:02:07]} 23. Nxg5 {[%clk 0:01:56]}  Rxg5 {[%clk 0:02:08]} 24. Qe3 {[%clk 0:01:50]}  Rh5 {[%clk 0:02:05]} 25. Rae1 {[%clk 0:01:44]}  Qd7 {[%clk 0:02:00]} 26. Kg1 {[%clk 0:01:40]}  Qh3 {[%clk 0:01:59]} 27. Rf2 {[%clk 0:01:40]}  Rhf5 {[%clk 0:01:57]} 28. Ref1 {[%clk 0:01:37]}  b6 {[%clk 0:01:48]} 29. Qe4 {[%clk 0:01:33]}  h5 {[%clk 0:01:39]} 30. f4 {[%clk 0:01:22]}  exf4 {[%clk 0:01:37]} 31. Qe6+ {[%clk 0:00:53]}  Kh7 {[%clk 0:01:22]} 32. Rxf4 {[%clk 0:00:39]}  Rxf4 {[%clk 0:01:21]} 33. Rxf4 {[%clk 0:00:37]}  Qxe6 {[%clk 0:01:16]} 34. dxe6 {[%clk 0:00:38]}  Rxf4 {[%clk 0:00:51]} 35. gxf4 {[%clk 0:00:38]}  Kg6 {[%clk 0:00:52]} 36. f5+ {[%clk 0:00:34]}  Kf6 {[%clk 0:00:52]} 37. Kf2 {[%clk 0:00:32]}  g6 {[%clk 0:00:52]} 38. fxg6 {[%clk 0:00:31]}  Kxe6 {[%clk 0:00:48]} 39. Kf3 {[%clk 0:00:27]}  Kf6 {[%clk 0:00:48]} 40. Ke4 {[%clk 0:00:26]}  c6 {[%clk 0:00:48]} 41. h4 {[%clk 0:00:17]}  Kxg6 {[%clk 0:00:48]} 42. Kf4 {[%clk 0:00:18]}  Kf6 {[%clk 0:00:47]} 43. Ke4 {[%clk 0:00:19]}  Ke6 {[%clk 0:00:47]} 44. Kf4 {[%clk 0:00:19]}  d5 {[%clk 0:00:45]} 45. cxd5+ {[%clk 0:00:19]}  cxd5 {[%clk 0:00:46]} 46. Kg5 {[%clk 0:00:19]}  Ke5 {[%clk 0:00:44]} 47. Kxh5 {[%clk 0:00:19]}  Kf5 {[%clk 0:00:45]} 48. Kh6 {[%clk 0:00:19]}  d4 {[%clk 0:00:45]} 49. Kg7 {[%clk 0:00:19]}  Kg4 {[%clk 0:00:45]} 50. h5 {[%clk 0:00:16]}  Kxh5 {[%clk 0:00:45]} 0-1


[Site "https://www.chess.com"]